[Event "Live Chess"]
[Site "Chess.com"]
[Date "2023.05.20"]
[Round "-"]
[White "JackRudd"]
[Black "Missedidea"]
[Result "1-0"]
[WhiteElo "2460"]
[BlackElo "1738"]
[TimeControl "300"]
[EndTime "12:33:32 PDT"]
[Termination "JackRudd won by resignation"]

1. d4 {[%clk 0:04:59.2]} 1... Nf6 {[%clk 0:04:57.5]} 2. c4 {[%clk 0:04:58.3]}
2... g6 {[%clk 0:04:55.9]} 3. Nc3 {[%clk 0:04:57]} 3... Bg7 {[%clk 0:04:54.9]}
4. e4 {[%clk 0:04:56.3]} 4... d6 {[%clk 0:04:54]} 5. Nf3 {[%clk 0:04:55.2]} 5...
O-O {[%clk 0:04:52.6]} 6. Be2 {[%clk 0:04:53.8]} 6... e5 {[%clk 0:04:51.4]} 7.
d5 {[%clk 0:04:52.7]} 7... a5 {[%clk 0:04:47.4]} 8. O-O {[%clk 0:04:50.5]} 8...
Na6 {[%clk 0:04:46.4]} 9. Ne1 {[%clk 0:04:48.4]} 9... Nc5 {[%clk 0:04:42.6]} 10.
f3 {[%clk 0:04:46.7]} 10... Bd7 {[%clk 0:04:34.7]} 11. Be3 {[%clk 0:04:45.2]}
11... b6 {[%clk 0:04:32.7]} 12. b3 {[%clk 0:04:41.9]} 12... h5 {[%clk 0:04:21]}
13. Rb1 {[%clk 0:04:39.8]} 13... Nh7 {[%clk 0:04:10.2]} 14. a3 {[%clk
0:04:38.4]} 14... f5 {[%clk 0:04:00.7]} 15. b4 {[%clk 0:04:37.2]} 15... axb4
{[%clk 0:03:57.3]} 16. axb4 {[%clk 0:04:35.9]} 16... Na6 {[%clk 0:03:50.6]} 17.
Nd3 {[%clk 0:04:34.6]} 17... f4 {[%clk 0:03:46.3]} 18. Bf2 {[%clk 0:04:33.1]}
18... g5 {[%clk 0:03:45.4]} 19. c5 {[%clk 0:04:30.8]} 19... bxc5 {[%clk
0:03:38.6]} 20. bxc5 {[%clk 0:04:30]} 20... Rb8 {[%clk 0:03:27.3]} 21. Ra1
{[%clk 0:04:26.5]} 21... Nb4 {[%clk 0:03:17.4]} 22. c6 {[%clk 0:04:23.4]} 22...
Be8 {[%clk 0:03:13.2]} 23. Ba7 {[%clk 0:04:22.1]} 23... Nxd3 {[%clk 0:03:00.8]}
24. Bxb8 {[%clk 0:04:19.3]} 24... Qxb8 {[%clk 0:02:48.1]} 25. Qxd3 {[%clk
0:04:17.9]} 25... Qb6+ {[%clk 0:02:44]} 26. Kh1 {[%clk 0:04:16.2]} 26... Nf6
{[%clk 0:02:34.4]} 27. Rab1 {[%clk 0:04:05.3]} 27... Qc5 {[%clk 0:02:31]} 28.
Nb5 {[%clk 0:04:04.2]} 28... g4 {[%clk 0:02:26.3]} 29. Nxc7 {[%clk 0:04:01]}
29... Kf7 {[%clk 0:02:19.3]} 30. Ne6 {[%clk 0:03:59]} 30... Rh8 {[%clk
0:02:16.4]} 31. Rb7+ {[%clk 0:03:56.4]} 31... Bd7 {[%clk 0:02:10.9]} 32. cxd7
{[%clk 0:03:55]} 32... Kg6 {[%clk 0:01:54]} 33. d8=Q {[%clk 0:03:52.8]} 1-0

[Event "Live Chess"]
[Site "Chess.com"]
[Date "2023.05.20"]
[Round "-"]
[White "Long1968"]
[Black "vovanada"]
[Result "0-1"]
[WhiteElo "774"]
[BlackElo "825"]
[TimeControl "300"]
[EndTime "12:33:33 PDT"]
[Termination "vovanada won on time"]

1. e4 {[%clk 0:04:54.9]} 1... e5 {[%clk 0:04:58.1]} 2. f4 {[%clk 0:04:52.2]}
2... d6 {[%clk 0:04:52.8]} 3. Bc4 {[%clk 0:04:47.7]} 3... exf4 {[%clk
0:04:45.8]} 4. Nf3 {[%clk 0:04:44.5]} 4... Nf6 {[%clk 0:04:43.5]} 5. Nc3 {[%clk
0:04:41]} 5... Be7 {[%clk 0:04:39.6]} 6. O-O {[%clk 0:04:37.7]} 6... O-O {[%clk
0:04:38.2]} 7. d4 {[%clk 0:04:33.9]} 7... b6 {[%clk 0:04:23.2]} 8. e5 {[%clk
0:04:21.7]} 8... dxe5 {[%clk 0:04:03.7]} 9. dxe5 {[%clk 0:04:13.9]} 9... Qxd1
{[%clk 0:04:01.9]} 10. Rxd1 {[%clk 0:04:09.8]} 10... Ng4 {[%clk 0:03:55.9]} 11.
Bxf4 {[%clk 0:04:00]} 11... Ba6 {[%clk 0:03:42.2]} 12. Bxa6 {[%clk 0:03:48.2]}
12... Nxa6 {[%clk 0:03:35.9]} 13. Rd2 {[%clk 0:03:36.6]} 13... Bc5+ {[%clk
0:03:30.5]} 14. Kf1 {[%clk 0:03:31.1]} 14... Nb4 {[%clk 0:03:17.9]} 15. a3
{[%clk 0:03:23.8]} 15... Ne3+ {[%clk 0:02:56.5]} 16. Bxe3 {[%clk 0:03:16.4]}
16... Bxe3 {[%clk 0:02:54]} 17. Re2 {[%clk 0:03:07.4]} 17... Nxc2 {[%clk
0:02:21.8]} 18. Rxc2 {[%clk 0:03:00.6]} 18... Rad8 {[%clk 0:02:09.4]} 19. Rd1
{[%clk 0:02:51.6]} 19... a5 {[%clk 0:01:57]} 20. Re2 {[%clk 0:02:29.4]} 20...
Bc5 {[%clk 0:01:42]} 21. Rxd8 {[%clk 0:02:22.2]} 21... Rxd8 {[%clk 0:01:40.4]}
22. Rd2 {[%clk 0:02:13.4]} 22... Re8 {[%clk 0:01:20.3]} 23. Ne4 {[%clk
0:02:06.9]} 23... Be3 {[%clk 0:01:13.3]} 24. Rd3 {[%clk 0:01:58.7]} 24... Bc1
{[%clk 0:01:01.8]} 25. b4 {[%clk 0:01:43.5]} 25... axb4 {[%clk 0:00:55.2]} 26.
axb4 {[%clk 0:01:39.4]} 26... Bb2 {[%clk 0:00:49.2]} 27. Rd7 {[%clk 0:01:26.4]}
27... c5 {[%clk 0:00:38.8]} 28. bxc5 {[%clk 0:01:20.4]} 28... bxc5 {[%clk
0:00:37.8]} 29. Nxc5 {[%clk 0:01:12.7]} 29... h6 {[%clk 0:00:34]} 30. Kf2 {[%clk
0:00:58.1]} 30... Bxe5 {[%clk 0:00:31.4]} 31. Nxe5 {[%clk 0:00:51.5]} 31... Rxe5
{[%clk 0:00:31.3]} 32. Nd3 {[%clk 0:00:40.8]} 32... Ra5 {[%clk 0:00:28.4]} 33.
Kf3 {[%clk 0:00:35.8]} 33... Ra3 {[%clk 0:00:24.2]} 34. g4 {[%clk 0:00:30.6]}
34... Kh7 {[%clk 0:00:23.6]} 35. h4 {[%clk 0:00:25.9]} 35... g6 {[%clk
0:00:22.3]} 36. Rxf7+ {[%clk 0:00:22.1]} 36... Kg8 {[%clk 0:00:20.5]} 37. Rd7
{[%clk 0:00:20.6]} 37... g5 {[%clk 0:00:17.8]} 38. hxg5 {[%clk 0:00:17.4]} 38...
hxg5 {[%clk 0:00:17.7]} 39. Rd5 {[%clk 0:00:15.8]} 39... Kf8 {[%clk 0:00:17.2]}
40. Ke4 {[%clk 0:00:12.6]} 40... Ke7 {[%clk 0:00:15.2]} 41. Rxg5 {[%clk
0:00:10.9]} 41... Ra4+ {[%clk 0:00:14.5]} 42. Kf5 {[%clk 0:00:07.2]} 42... Ra5+
{[%clk 0:00:13.5]} 43. Kg6 {[%clk 0:00:04.8]} 43... Ra6+ {[%clk 0:00:12.5]} 44.
Kh7 {[%clk 0:00:03]} 44... Kd8 {[%clk 0:00:10.1]} 45. Ne5 {[%clk 0:00:00.2]}
45... Ke8 {[%clk 0:00:09]} 0-1

[Event "Live Chess"]
[Site "Chess.com"]
[Date "2023.05.20"]
[Round "-"]
[White "Duke_of_Bebington"]
[Black "Hacker_2009"]
[Result "1-0"]
[WhiteElo "1602"]
[BlackElo "1899"]
[TimeControl "300"]
[EndTime "12:33:40 PDT"]
[Termination "Duke_of_Bebington won by resignation"]

1. e4 {[%clk 0:04:58.5]} 1... c5 {[%clk 0:04:56.2]} 2. c3 {[%clk 0:04:57]} 2...
d5 {[%clk 0:04:54.4]} 3. exd5 {[%clk 0:04:55]} 3... Qxd5 {[%clk 0:04:54.3]} 4.
d4 {[%clk 0:04:53.6]} 4... Nc6 {[%clk 0:04:50]} 5. dxc5 {[%clk 0:04:51]} 5...
Qxc5 {[%clk 0:04:43.5]} 6. Nf3 {[%clk 0:04:46.5]} 6... e6 {[%clk 0:04:39.3]} 7.
Be2 {[%clk 0:04:44.4]} 7... Nf6 {[%clk 0:04:25]} 8. Be3 {[%clk 0:04:37.6]} 8...
Qe7 {[%clk 0:04:18.4]} 9. Na3 {[%clk 0:04:28.6]} 9... b6 {[%clk 0:04:16.2]} 10.
Bg5 {[%clk 0:04:21.2]} 10... Bb7 {[%clk 0:04:13.3]} 11. O-O {[%clk 0:04:19.6]}
11... Rd8 {[%clk 0:04:11.9]} 12. Qa4 {[%clk 0:04:14]} 12... h6 {[%clk
0:04:08.1]} 13. Bh4 {[%clk 0:04:10.4]} 13... g5 {[%clk 0:03:58.8]} 14. Bg3
{[%clk 0:04:05.5]} 14... Bg7 {[%clk 0:03:57.3]} 15. Ne5 {[%clk 0:04:01.7]} 15...
Rc8 {[%clk 0:03:46.2]} 16. Bb5 {[%clk 0:03:56.4]} 16... Qc5 {[%clk 0:03:36]} 17.
b4 {[%clk 0:03:37.2]} 17... Qd5 {[%clk 0:03:32]} 18. Rfd1 {[%clk 0:03:25.7]}
18... Qe4 {[%clk 0:03:30.7]} 19. Re1 {[%clk 0:03:15.6]} 19... Qd5 {[%clk
0:03:14.5]} 20. Rad1 {[%clk 0:03:12.2]} 1-0

[Event "Live Chess"]
[Site "Chess.com"]
[Date "2023.05.20"]
[Round "-"]
[White "AttackingSnowLeopard"]
[Black "rideuv21"]
[Result "1-0"]
[WhiteElo "2040"]
[BlackElo "1834"]
[TimeControl "300"]
[EndTime "12:33:41 PDT"]
[Termination "AttackingSnowLeopard won by resignation"]

1. d4 {[%clk 0:04:57.5]} 1... c5 {[%clk 0:04:59.9]} 2. d5 {[%clk 0:04:56.5]}
2... Nf6 {[%clk 0:04:56.3]} 3. Nc3 {[%clk 0:04:54.8]} 3... g6 {[%clk 0:04:54.5]}
4. e4 {[%clk 0:04:54.3]} 4... d6 {[%clk 0:04:51.7]} 5. Nf3 {[%clk 0:04:53.5]}
5... Bg7 {[%clk 0:04:50.9]} 6. Be2 {[%clk 0:04:53.1]} 6... O-O {[%clk
0:04:49.8]} 7. O-O {[%clk 0:04:52.5]} 7... a6 {[%clk 0:04:49]} 8. a4 {[%clk
0:04:50.3]} 8... b6 {[%clk 0:04:48.4]} 9. Nd2 {[%clk 0:04:48.3]} 9... Bb7 {[%clk
0:04:45.7]} 10. Nc4 {[%clk 0:04:46.4]} 10... Nbd7 {[%clk 0:04:45.4]} 11. Be3
{[%clk 0:04:43.8]} 11... Qc7 {[%clk 0:04:42.3]} 12. f3 {[%clk 0:04:42.4]} 12...
e6 {[%clk 0:04:41.6]} 13. dxe6 {[%clk 0:04:40.3]} 13... fxe6 {[%clk 0:04:40.7]}
14. Qxd6 {[%clk 0:04:38.8]} 14... Qxd6 {[%clk 0:04:39.7]} 15. Nxd6 {[%clk
0:04:37.3]} 15... Bc6 {[%clk 0:04:39.2]} 16. Bc4 {[%clk 0:04:26.1]} 1-0

[Event "Live Chess"]
[Site "Chess.com"]
[Date "2023.05.20"]
[Round "-"]
[White "azimchess2019"]
[Black "LL220284LL"]
[Result "0-1"]
[WhiteElo "1362"]
[BlackElo "2404"]
[TimeControl "300"]
[EndTime "12:33:48 PDT"]
[Termination "LL220284LL won by resignation"]

1. d4 {[%clk 0:04:59]} 1... g6 {[%clk 0:04:58.3]} 2. c4 {[%clk 0:04:58.9]} 2...
Bg7 {[%clk 0:04:57.9]} 3. Nc3 {[%clk 0:04:58.1]} 3... d6 {[%clk 0:04:57.5]} 4.
Nf3 {[%clk 0:04:57.3]} 4... Nf6 {[%clk 0:04:57.1]} 5. e3 {[%clk 0:04:57.2]} 5...
O-O {[%clk 0:04:56.5]} 6. Be2 {[%clk 0:04:57.1]} 6... Nbd7 {[%clk 0:04:55.2]} 7.
O-O {[%clk 0:04:56.6]} 7... e5 {[%clk 0:04:54.9]} 8. a3 {[%clk 0:04:54.6]} 8...
Re8 {[%clk 0:04:53.7]} 9. Qc2 {[%clk 0:04:53.2]} 9... c6 {[%clk 0:04:51]} 10. e4
{[%clk 0:04:48.5]} 10... exd4 {[%clk 0:04:49.2]} 11. Nxd4 {[%clk 0:04:47.6]}
11... Nxe4 {[%clk 0:04:45.6]} 0-1

[Event "Live Chess"]
[Site "Chess.com"]
[Date "2023.05.20"]
[Round "-"]
[White "NatashaRegan"]
[Black "omisoc"]
[Result "0-1"]
[WhiteElo "1813"]
[BlackElo "2204"]
[TimeControl "300"]
[EndTime "12:33:49 PDT"]
[Termination "omisoc won by resignation"]

1. e4 {[%clk 0:04:53.7]} 1... b6 {[%clk 0:04:58.6]} 2. d4 {[%clk 0:04:51]} 2...
Bb7 {[%clk 0:04:57.3]} 3. Nc3 {[%clk 0:04:49.9]} 3... e6 {[%clk 0:04:54.9]} 4.
Nf3 {[%clk 0:04:48.6]} 4... Bb4 {[%clk 0:04:52.8]} 5. d5 {[%clk 0:04:37.6]} 5...
Nf6 {[%clk 0:04:49.9]} 6. Qd4 {[%clk 0:04:28.1]} 6... c5 {[%clk 0:04:46.2]} 7.
dxc6 {[%clk 0:04:25]} 7... Nxc6 {[%clk 0:04:44.4]} 8. Qe3 {[%clk 0:04:13.7]}
8... d5 {[%clk 0:04:43.1]} 9. exd5 {[%clk 0:04:00]} 9... Nxd5 {[%clk 0:04:41]}
10. Qd3 {[%clk 0:03:43.2]} 10... Nxc3 {[%clk 0:04:38]} 11. bxc3 {[%clk 0:03:38]}
11... Qxd3 {[%clk 0:04:36.4]} 12. Bxd3 {[%clk 0:03:26.5]} 12... Bxc3+ {[%clk
0:04:34.6]} 0-1

[Event "Live Chess"]
[Site "Chess.com"]
[Date "2023.05.20"]
[Round "-"]
[White "kevinmilleruk"]
[Black "ProfPoisson"]
[Result "1-0"]
[WhiteElo "1120"]
[BlackElo "1060"]
[TimeControl "300"]
[EndTime "12:33:52 PDT"]
[Termination "kevinmilleruk won on time"]

1. c4 {[%clk 0:04:58.9]} 1... f5 {[%clk 0:04:46.3]} 2. Nc3 {[%clk 0:04:56.1]}
2... e6 {[%clk 0:04:40.9]} 3. g3 {[%clk 0:04:47.1]} 3... Nf6 {[%clk 0:04:35.1]}
4. Bg2 {[%clk 0:04:31]} 4... Be7 {[%clk 0:04:32.7]} 5. Nf3 {[%clk 0:04:23.1]}
5... O-O {[%clk 0:04:13.5]} 6. O-O {[%clk 0:04:17.3]} 6... d6 {[%clk 0:04:10.4]}
7. d3 {[%clk 0:04:13.8]} 7... e5 {[%clk 0:04:07]} 8. Bg5 {[%clk 0:04:10.7]} 8...
Ng4 {[%clk 0:04:02.1]} 9. Bxe7 {[%clk 0:04:08.9]} 9... Qxe7 {[%clk 0:03:59.5]}
10. Nd5 {[%clk 0:04:08.1]} 10... Qf7 {[%clk 0:03:49.3]} 11. Ne3 {[%clk
0:03:55.7]} 11... Nc6 {[%clk 0:03:39.1]} 12. b3 {[%clk 0:03:45.1]} 12... Nxe3
{[%clk 0:03:35.9]} 13. fxe3 {[%clk 0:03:43]} 13... f4 {[%clk 0:03:33.7]} 14.
exf4 {[%clk 0:03:38.8]} 14... exf4 {[%clk 0:03:30.2]} 15. Ng5 {[%clk 0:03:35.3]}
15... Qg6 {[%clk 0:03:19.9]} 16. gxf4 {[%clk 0:03:29.8]} 16... h6 {[%clk
0:03:10.6]} 17. Ne4 {[%clk 0:03:21.7]} 17... Bh3 {[%clk 0:03:05.4]} 18. Ng3
{[%clk 0:03:15]} 18... Bxg2 {[%clk 0:02:57.2]} 19. Kxg2 {[%clk 0:03:13.4]} 19...
Rae8 {[%clk 0:02:53.2]} 20. Rf3 {[%clk 0:03:06.5]} 20... Nd4 {[%clk 0:02:49.3]}
21. Rf2 {[%clk 0:02:55.6]} 21... Re3 {[%clk 0:02:41.3]} 22. Qf1 {[%clk
0:02:44.1]} 22... Rfe8 {[%clk 0:02:32.7]} 23. f5 {[%clk 0:02:42.2]} 23... Qg5
{[%clk 0:02:16.7]} 24. f6 {[%clk 0:02:31.5]} 24... gxf6 {[%clk 0:02:07.9]} 25.
Rxf6 {[%clk 0:02:29.4]} 25... Rxe2+ {[%clk 0:02:04.8]} 26. Rf2 {[%clk
0:02:27.7]} 26... Qg4 {[%clk 0:01:20.6]} 27. Re1 {[%clk 0:02:12.4]} 27... Rxe1
{[%clk 0:01:11.4]} 28. h3 {[%clk 0:02:02.8]} 28... Qxg3+ {[%clk 0:01:01.3]} 29.
Kxg3 {[%clk 0:01:58.9]} 29... Rxf1 {[%clk 0:00:58.4]} 30. Rxf1 {[%clk
0:01:58.4]} 30... Re3+ {[%clk 0:00:56.3]} 31. Kf4 {[%clk 0:01:54.8]} 31... Rxd3
{[%clk 0:00:54.3]} 32. Ke4 {[%clk 0:01:48.8]} 32... Rd2 {[%clk 0:00:50.5]} 33.
Rg1+ {[%clk 0:01:46.2]} 33... Kh7 {[%clk 0:00:45.3]} 34. Rf1 {[%clk 0:01:43.1]}
34... Ne6 {[%clk 0:00:33.8]} 35. Rf7+ {[%clk 0:01:41.1]} 35... Kg6 {[%clk
0:00:29.1]} 36. Rf3 {[%clk 0:01:34.2]} 36... Ng5+ {[%clk 0:00:27.6]} 37. Ke3
{[%clk 0:01:31.9]} 37... Nxf3 {[%clk 0:00:22.9]} 38. Kxf3 {[%clk 0:01:29.2]}
38... Rd3+ {[%clk 0:00:21.1]} 39. Ke4 {[%clk 0:01:27.1]} 39... Rd2 {[%clk
0:00:19]} 40. a4 {[%clk 0:01:24.6]} 40... Rc2 {[%clk 0:00:17.2]} 41. Kd5 {[%clk
0:01:22.6]} 41... Kh5 {[%clk 0:00:16]} 42. Kd4 {[%clk 0:01:19.2]} 42... Kh4
{[%clk 0:00:13.6]} 43. Kd3 {[%clk 0:01:18.7]} 43... Rh2 {[%clk 0:00:11.3]} 44.
b4 {[%clk 0:01:15.5]} 44... Rxh3+ {[%clk 0:00:10.3]} 45. Kd4 {[%clk 0:01:14.3]}
45... Rg3 {[%clk 0:00:09.4]} 46. Kd5 {[%clk 0:01:10.8]} 46... Kg4 {[%clk
0:00:08.2]} 47. Ke6 {[%clk 0:01:10.2]} 47... h5 {[%clk 0:00:07.2]} 48. Kd7
{[%clk 0:01:09.8]} 48... h4 {[%clk 0:00:06.3]} 49. Kxc7 {[%clk 0:01:09.2]} 49...
h3 {[%clk 0:00:06]} 50. Kxb7 {[%clk 0:01:08.7]} 50... h2 {[%clk 0:00:05.4]} 51.
Kxa7 {[%clk 0:01:06.5]} 51... h1=Q {[%clk 0:00:04]} 52. b5 {[%clk 0:01:06.1]}
52... Qh7+ {[%clk 0:00:02]} 53. Ka6 {[%clk 0:01:04.3]} 53... Kf4 {[%clk
0:00:00.7]} 54. c5 {[%clk 0:01:00.5]} 1-0

[Event "Live Chess"]
[Site "Chess.com"]
[Date "2023.05.20"]
[Round "-"]
[White "chessleanstrategist"]
[Black "Hoogleboogle"]
[Result "0-1"]
[WhiteElo "400"]
[BlackElo "1386"]
[TimeControl "300"]
[EndTime "12:33:54 PDT"]
[Termination "Hoogleboogle won on time"]

1. c4 {[%clk 0:04:58.8]} 1... e5 {[%clk 0:04:54]} 2. Nc3 {[%clk 0:04:53.1]} 2...
Nf6 {[%clk 0:04:49.1]} 3. Nf3 {[%clk 0:04:45.1]} 3... Nc6 {[%clk 0:04:45.7]} 4.
d4 {[%clk 0:04:33.9]} 4... exd4 {[%clk 0:04:42]} 5. Nxd4 {[%clk 0:04:31.9]} 5...
Nxd4 {[%clk 0:04:37.1]} 6. Qxd4 {[%clk 0:04:30.7]} 6... Bb4 {[%clk 0:04:28.3]}
7. g3 {[%clk 0:04:21.4]} 7... d6 {[%clk 0:04:23.6]} 8. Bg2 {[%clk 0:04:19.8]}
8... c5 {[%clk 0:04:17.2]} 9. Qe3+ {[%clk 0:04:10.8]} 9... Be6 {[%clk
0:03:53.7]} 10. Bd5 {[%clk 0:03:56]} 10... Qe7 {[%clk 0:03:46.3]} 11. Bxe6
{[%clk 0:03:43.4]} 11... Qxe6 {[%clk 0:03:42.6]} 12. Qxe6+ {[%clk 0:03:32.6]}
12... fxe6 {[%clk 0:03:40.7]} 13. a3 {[%clk 0:03:15.6]} 13... Bxc3+ {[%clk
0:03:38.3]} 14. bxc3 {[%clk 0:03:14]} 14... d5 {[%clk 0:03:36.8]} 15. cxd5
{[%clk 0:03:11]} 15... Nxd5 {[%clk 0:03:34.8]} 16. Bb2 {[%clk 0:03:00.6]} 16...
Rd8 {[%clk 0:03:28.9]} 17. O-O {[%clk 0:02:56.7]} 17... c4 {[%clk 0:03:22.5]}
18. Rfd1 {[%clk 0:02:49.6]} 18... b5 {[%clk 0:03:19.4]} 19. a4 {[%clk
0:02:39.9]} 19... a6 {[%clk 0:03:08.5]} 20. axb5 {[%clk 0:02:33.4]} 20... axb5
{[%clk 0:03:06.6]} 21. Ra5 {[%clk 0:02:27.1]} 21... Rb8 {[%clk 0:03:04.5]} 22.
Rda1 {[%clk 0:02:09.3]} 22... O-O {[%clk 0:03:01.1]} 23. e3 {[%clk 0:01:29.3]}
23... b4 {[%clk 0:02:59.1]} 24. cxb4 {[%clk 0:01:09]} 24... Rxb4 {[%clk
0:02:56.2]} 25. R1a2 {[%clk 0:00:59.8]} 25... Rfb8 {[%clk 0:02:52.7]} 26. Ra8
{[%clk 0:00:53.5]} 26... Rxb2 {[%clk 0:02:30.6]} 27. Rxb2 {[%clk 0:00:50.4]}
27... Rxa8 {[%clk 0:02:29.2]} 28. Rc2 {[%clk 0:00:16.5]} 28... c3 {[%clk
0:02:25.7]} 29. Kg2 {[%clk 0:00:14.1]} 29... Rb8 {[%clk 0:02:22.1]} 30. e4
{[%clk 0:00:12.1]} 30... Rb2 {[%clk 0:02:18.7]} 0-1

[Event "Live Chess"]
[Site "Chess.com"]
[Date "2023.05.20"]
[Round "-"]
[White "LiamClery2020"]
[Black "Tushinskiy"]
[Result "1/2-1/2"]
[WhiteElo "2085"]
[BlackElo "2093"]
[TimeControl "300"]
[EndTime "12:33:56 PDT"]
[Termination "Game drawn - insufficient material"]

1. e4 {[%clk 0:04:59.4]} 1... e5 {[%clk 0:04:56.2]} 2. Nc3 {[%clk 0:04:58.5]}
2... d6 {[%clk 0:04:56.1]} 3. d4 {[%clk 0:04:57]} 3... Nd7 {[%clk 0:04:52.7]} 4.
Nf3 {[%clk 0:04:56]} 4... Be7 {[%clk 0:04:37.5]} 5. Be3 {[%clk 0:04:50.5]} 5...
Ngf6 {[%clk 0:04:34.1]} 6. dxe5 {[%clk 0:04:49.7]} 6... dxe5 {[%clk 0:04:30.6]}
7. Bc4 {[%clk 0:04:46.4]} 7... O-O {[%clk 0:04:28.2]} 8. O-O {[%clk 0:04:45.1]}
8... c6 {[%clk 0:04:26.3]} 9. Qd2 {[%clk 0:04:38.3]} 9... Qc7 {[%clk 0:04:23.6]}
10. Rad1 {[%clk 0:04:34.8]} 10... Nc5 {[%clk 0:04:22.3]} 11. Bxc5 {[%clk
0:04:27.6]} 11... Bxc5 {[%clk 0:04:22.2]} 12. Qg5 {[%clk 0:04:26.5]} 12... Bg4
{[%clk 0:04:19.2]} 13. Be2 {[%clk 0:04:16.2]} 13... Bxf3 {[%clk 0:04:17.4]} 14.
Bxf3 {[%clk 0:04:15]} 14... Rad8 {[%clk 0:04:16.6]} 15. Rd3 {[%clk 0:04:07.4]}
15... Rxd3 {[%clk 0:04:14.7]} 16. cxd3 {[%clk 0:04:06.5]} 16... Rd8 {[%clk
0:04:14.1]} 17. Rd1 {[%clk 0:04:05.6]} 17... Bd4 {[%clk 0:04:10.5]} 18. Ne2
{[%clk 0:04:04.4]} 18... Bxb2 {[%clk 0:04:07.1]} 19. Ng3 {[%clk 0:04:03.1]}
19... h6 {[%clk 0:04:05.6]} 20. Qh4 {[%clk 0:04:01.7]} 20... Kf8 {[%clk
0:03:54.7]} 21. Nf5 {[%clk 0:04:00.6]} 21... Ng8 {[%clk 0:03:51.1]} 22. Rb1
{[%clk 0:03:50.8]} 22... g6 {[%clk 0:03:22.8]} 23. Rxb2 {[%clk 0:03:47.1]} 23...
gxf5 {[%clk 0:03:18.8]} 24. Rxb7 {[%clk 0:03:31.5]} 24... Qxb7 {[%clk
0:03:18.7]} 25. Qxd8+ {[%clk 0:03:30.9]} 25... Kg7 {[%clk 0:03:17.5]} 26. h3
{[%clk 0:03:30.3]} 26... Qe7 {[%clk 0:02:54.8]} 27. Qxe7 {[%clk 0:03:23.5]}
27... Nxe7 {[%clk 0:02:53.3]} 28. exf5 {[%clk 0:03:23.4]} 28... c5 {[%clk
0:02:47]} 29. g4 {[%clk 0:03:22.2]} 29... Kf6 {[%clk 0:02:45.7]} 30. h4 {[%clk
0:03:14.5]} 30... Nc8 {[%clk 0:02:43.6]} 31. Kf1 {[%clk 0:03:10.4]} 31... Nd6
{[%clk 0:02:42.5]} 32. Ke1 {[%clk 0:03:08.1]} 32... h5 {[%clk 0:02:41.8]} 33.
gxh5 {[%clk 0:03:02.8]} 33... Nxf5 {[%clk 0:02:39.8]} 34. Be4 {[%clk 0:02:55]}
34... Nxh4 {[%clk 0:02:38.2]} 35. h6 {[%clk 0:02:53]} 35... Ng6 {[%clk
0:02:31.5]} 36. Kd2 {[%clk 0:02:47.1]} 36... Nh8 {[%clk 0:02:25.5]} 37. Kc3
{[%clk 0:02:46.2]} 37... Kg5 {[%clk 0:02:25]} 38. Kc4 {[%clk 0:02:44.2]} 38...
f5 {[%clk 0:02:22.6]} 39. Bc6 {[%clk 0:02:41.2]} 39... Kxh6 {[%clk 0:02:21.4]}
40. Kxc5 {[%clk 0:02:40.1]} 40... Kg5 {[%clk 0:02:20.6]} 41. Kd5 {[%clk
0:02:39.5]} 41... Kf4 {[%clk 0:02:19.9]} 42. Be8 {[%clk 0:02:34]} 42... e4
{[%clk 0:02:14.1]} 43. dxe4 {[%clk 0:02:33.2]} 43... fxe4 {[%clk 0:02:14]} 44.
Kd4 {[%clk 0:02:31.4]} 44... Kf3 {[%clk 0:02:12.4]} 45. Bc6 {[%clk 0:02:30.4]}
45... Kxf2 {[%clk 0:02:10.4]} 46. Bxe4 {[%clk 0:02:28.2]} 46... Nf7 {[%clk
0:02:09.8]} 47. Kc5 {[%clk 0:02:27.2]} 47... Ke3 {[%clk 0:02:08.7]} 48. Bd5
{[%clk 0:02:25.7]} 48... Ne5 {[%clk 0:02:05.7]} 49. a4 {[%clk 0:02:23.4]} 49...
Nd3+ {[%clk 0:02:03.3]} 50. Kb5 {[%clk 0:02:21.2]} 50... Kd4 {[%clk 0:02:03.2]}
51. Ka6 {[%clk 0:02:20.1]} 51... Kxd5 {[%clk 0:02:01.4]} 52. Kxa7 {[%clk
0:02:20]} 52... Kc6 {[%clk 0:02:00.4]} 53. Kb8 {[%clk 0:02:14.7]} 53... Kb6
{[%clk 0:01:59.1]} 54. Kc8 {[%clk 0:02:13.7]} 54... Ka5 {[%clk 0:01:57.5]} 55.
Kd8 {[%clk 0:02:13.6]} 55... Kxa4 {[%clk 0:01:57.4]} 1/2-1/2

[Event "Live Chess"]
[Site "Chess.com"]
[Date "2023.05.20"]
[Round "-"]
[White "ramses-IIG"]
[Black "booktrunk"]
[Result "1-0"]
[WhiteElo "825"]
[BlackElo "1304"]
[TimeControl "300"]
[EndTime "12:34:02 PDT"]
[Termination "ramses-IIG won by checkmate"]

1. e4 {[%clk 0:04:57.7]} 1... d5 {[%clk 0:04:59.9]} 2. e5 {[%clk 0:04:55.2]}
2... Nc6 {[%clk 0:04:57.3]} 3. Nf3 {[%clk 0:04:55.1]} 3... Bg4 {[%clk
0:04:53.9]} 4. d4 {[%clk 0:04:55]} 4... Qd7 {[%clk 0:04:46.7]} 5. c3 {[%clk
0:04:46.3]} 5... e6 {[%clk 0:04:45.3]} 6. h3 {[%clk 0:04:44.7]} 6... Bf5 {[%clk
0:04:44.3]} 7. Nh4 {[%clk 0:04:39.3]} 7... Bxb1 {[%clk 0:04:41.4]} 8. Rxb1
{[%clk 0:04:37.7]} 8... Be7 {[%clk 0:04:38.8]} 9. Nf3 {[%clk 0:04:34.9]} 9... h6
{[%clk 0:04:37.6]} 10. Bb5 {[%clk 0:04:32.3]} 10... a6 {[%clk 0:04:35.8]} 11.
Ba4 {[%clk 0:04:30.3]} 11... b5 {[%clk 0:04:34.1]} 12. Bb3 {[%clk 0:04:29.9]}
12... Na5 {[%clk 0:04:32.8]} 13. Bc2 {[%clk 0:04:27.9]} 13... Nc4 {[%clk
0:04:30.6]} 14. Bd3 {[%clk 0:04:24.2]} 14... f6 {[%clk 0:04:22.7]} 15. Bxc4
{[%clk 0:04:20.2]} 15... dxc4 {[%clk 0:04:21.1]} 16. O-O {[%clk 0:04:16.9]}
16... fxe5 {[%clk 0:04:19]} 17. Nxe5 {[%clk 0:04:16.8]} 17... Qd6 {[%clk
0:04:14.7]} 18. Qc2 {[%clk 0:03:57.7]} 18... Nf6 {[%clk 0:04:12.9]} 19. Ng6
{[%clk 0:03:55.4]} 19... Rf8 {[%clk 0:04:03.3]} 20. Nxf8 {[%clk 0:03:53.8]}
20... Bxf8 {[%clk 0:04:00.5]} 21. Qg6+ {[%clk 0:03:40.3]} 21... Kd7 {[%clk
0:03:57.2]} 22. Qf7+ {[%clk 0:03:36]} 22... Kc6 {[%clk 0:03:54.3]} 23. Re1
{[%clk 0:03:16.8]} 23... Kb7 {[%clk 0:03:42.7]} 24. Rxe6 {[%clk 0:03:09.6]}
24... Qe7 {[%clk 0:03:40.6]} 25. Rxe7 {[%clk 0:03:07.7]} 25... Bxe7 {[%clk
0:03:34.8]} 26. Qxe7 {[%clk 0:03:05]} 26... Re8 {[%clk 0:03:33.5]} 27. Qxg7
{[%clk 0:03:02.6]} 27... Ne4 {[%clk 0:03:31.5]} 28. Qxh6 {[%clk 0:02:54.4]}
28... Re7 {[%clk 0:03:30.2]} 29. Bg5 {[%clk 0:02:37.4]} 29... Rf7 {[%clk
0:03:26.3]} 30. f3 {[%clk 0:02:30.1]} 30... Nd2 {[%clk 0:03:22.6]} 31. Re1
{[%clk 0:02:19.4]} 31... Nxf3+ {[%clk 0:03:19]} 32. gxf3 {[%clk 0:02:16.5]}
32... Rxf3 {[%clk 0:03:17.9]} 33. Re7 {[%clk 0:02:11.5]} 33... Rg3+ {[%clk
0:03:16.2]} 34. Kh2 {[%clk 0:02:09]} 34... Rxg5 {[%clk 0:03:14.5]} 35. Qxg5
{[%clk 0:02:07.2]} 35... b4 {[%clk 0:03:11.7]} 36. Qd5+ {[%clk 0:02:06.1]} 36...
Kc8 {[%clk 0:03:09.9]} 37. Qd7+ {[%clk 0:02:02.3]} 37... Kb8 {[%clk 0:03:08]}
38. Qxc7+ {[%clk 0:02:02.2]} 38... Ka8 {[%clk 0:03:07.1]} 39. Qa7# {[%clk
0:02:02.1]} 1-0